bitfinex-derivatives/quotes_SOLF0:USTF0_20220110
["timestamp","ask_amount","ask_price","bid_price","bid_amount"]
[1641784586427,7.14081691,140.07,140.0,7.323]
[1641784586428,5.71334216,140.03,140.0,7.323]
[1641784587125,4.0476368,140.02,140.01,3.10932672]
[1641784587926,4.0476368,140.02,139.99,3.10932672]
[1641784589529,11.7516368,140.02,139.99,3.10932672]
[1641784590231,7.704,140.02,139.99,3.10932672]
[1641784590931,5.71425495,140.01,139.99,3.10932672]
[1641784591130,2.6057311,139.99,139.97,40.03911844]
[1641784591330,10.8067311,139.99,139.97,40.03911844]
[1641784591529,8.201,139.99,139.97,40.03911844]
[1641784592433,8.201,139.99,139.98,2.36605536]
[1641784592832,12.24942446,139.99,139.98,2.36605536]
[1641784595433,4.04842446,139.99,139.98,2.36605536]
[1641784595634,34.52161283,140.01,139.98,2.36605536]
[1641784596035,4.04812266,140.0,139.98,2.36605536]
[1641784596438,34.52161283,140.01,139.98,2.36605536]
[1641784598037,6.85682283,140.01,139.98,2.36605536]
[1641784600540,27.66479,140.04,139.98,12.27548533]
[1641784600941,4.04758309,140.03,139.99,6.36605536]
[1641784601442,4.04758309,140.03,140.0,2.36605536]
[1641784603044,4.04758309,140.03,139.99,6.36605536]
[1641784603443,4.04758309,140.03,140.0,2.36605536]
[1641784605246,4.04758309,140.03,140.0,6.36605536]
[1641784605448,4.04758309,140.03,140.0,2.36605536]
[1641784605648,4.04758309,140.03,140.01,2.36605536]
[1641784606051,4.04758309,140.03,140.0,6.36605536]
[1641784606551,4.04758309,140.03,140.01,2.36605536]
[1641784607152,8.22592478,140.05,140.02,4.0]
[1641784607354,8.22592478,140.05,140.01,8.36005536]
[1641784607652,8.22592478,140.05,140.02,4.0]
[1641784608252,8.22592478,140.05,140.03,4.04666311]
[1641784608653,8.22592478,140.05,140.03,2.45248891]
[1641784609254,8.22592478,140.05,140.04,4.04666311]
[1641784610455,8.22592478,140.05,140.03,4.04666311]
[1641784610858,8.22592478,140.05,140.04,4.04666311]
[1641784611357,12.27287367,140.05,140.04,4.04666311]
[1641784613359,19.41496559,140.05,140.04,4.04666311]
[1641784613559,1.66686409,140.02,140.01,15.14866443]
[1641784613759,8.658,140.02,140.01,15.14866443]
[1641784614361,8.658,140.02,140.01,17.60086826]
[1641784614760,8.658,140.02,140.01,20.58711722]
[1641784619270,53.68153109,140.05,140.01,20.58711722]
[1641784619770,53.68153109,140.05,140.02,2.98624896]
[1641784620172,53.68153109,140.05,140.02,5.43845279]
[1641784620675,4.04715993,140.04,140.03,2.98624896]
[1641784621471,4.04715993,140.04,140.02,2.98624896]
[1641784623274,4.04715993,140.04,139.97,40.03911844]
[1641784623275,6.85789923,139.99,139.97,38.23261587]
[1641784623472,4.0,139.98,139.97,38.23261587]
[1641784624675,4.0,139.98,139.97,40.82199434]
[1641784624875,31.66479,139.98,139.97,40.82199434]
[1641784626576,6.85789923,139.99,139.97,40.82199434]
[1641784626777,8.22728439,140.03,139.98,27.66479]
[1641784626977,27.66479,140.06,139.98,78.99936847]
[1641784627477,27.66479,140.06,139.99,2.58937847]
[1641784627478,4.0,140.04,139.99,2.58937847]
[1641784627679,11.614,140.04,139.99,2.58937847]
[1641784628178,4.04757208,140.03,139.99,2.58937847]
[1641784628981,37.4258292,140.03,139.99,2.58937847]
[1641784629583,4.04757208,140.02,139.99,2.58937847]
[1641784631086,5.71346712,140.03,139.99,2.58937847]
[1641784632786,7.14183688,140.05,139.99,2.58937847]
[1641784633386,4.04737345,140.04,139.99,2.58937847]
[1641784635088,27.66479,140.02,139.99,2.58937847]
[1641784635286,33.57779,140.02,139.99,2.58937847]
[1641784635987,4.04779835,140.01,139.99,2.58937847]
[1641784636587,5.913,140.02,139.99,2.58937847]
[1641784638491,33.37769095,140.04,139.99,2.58937847]
[1641784638892,5.71290095,140.04,139.99,2.58937847]
[1641784639290,4.04756008,140.03,139.99,2.58937847]
[1641784640994,4.04756008,140.03,140.0,2.45047688]
[1641784641497,4.04756008,140.03,140.01,2.58937847]
[1641784642495,4.04756008,140.03,140.02,2.45047688]
[1641784642794,4.04756008,140.03,140.02,2.58937847]
[1641784642999,0.67392298,140.02,139.97,38.23261587]
[1641784643194,10.30056008,140.03,139.97,38.23261587]
[1641784643697,6.253,140.03,139.97,38.23261587]
[1641784644295,4.04797189,140.02,139.98,2.04501814]
[1641784648401,4.04797189,140.02,139.98,11.94810388]
[1641784649005,4.04797189,140.02,139.99,2.04501814]
[1641784651105,5.71323533,140.03,139.99,2.04501814]
[1641784652406,5.71323533,140.03,139.99,6.04501814]
[1641784652608,5.71323533,140.03,139.99,2.04501814]
[1641784653010,5.71323533,140.03,140.0,2.04501814]
[1641784654613,27.66479,140.04,139.99,9.42747233]
[1641784654614,4.0,140.01,139.99,9.42747233]
[1641784654813,4.0,140.01,139.98,9.90308574]
[1641784654814,4.0,140.0,139.98,9.90308574]
[1641784655014,4.0,139.99,139.98,9.90308574]
[1641784655413,4.0,139.99,139.97,38.23261587]
[1641784655613,31.66479,139.98,139.97,38.23261587]
[1641784656013,35.71404683,139.98,139.97,39.86989682]
[1641784656215,35.71404683,139.98,139.97,7.05889682]
[1641784656415,42.8597112,139.98,139.91,144.48430656]
[1641784656614,4.0,139.96,139.91,144.48430656]
[1641784656816,4.0,139.94,139.91,144.48430656]
[1641784657716,31.71478541,139.93,139.91,144.48430656]
[1641784657915,38.87278541,139.93,139.91,144.48430656]
[1641784658114,4.04999541,139.92,139.91,144.48430656]
[1641784658615,8.04999541,139.92,139.91,144.48430656]
[1641784662521,4.04999541,139.92,139.91,144.48430656]
[1641784666726,27.66479,139.93,139.91,144.48430656]
[1641784670531,4.05015382,139.92,139.91,144.48430656]
[1641784672632,10.07015382,139.92,139.91,144.48430656]
[1641784672935,10.07015382,139.92,139.91,145.5521128]
[1641784675643,6.02,139.92,139.91,145.5521128]
[1641784676241,10.07024233,139.92,139.91,145.5521128]
[1641784680647,15.78799409,139.92,139.91,145.5521128]
[1641784681246,15.78799409,139.92,139.91,1.06780624]
[1641784681847,15.78799409,139.92,139.87,1.06780624]
[1641784682246,4.05024233,139.91,139.87,1.06780624]
[1641784683050,4.05024233,139.91,139.88,2.4422362]
[1641784683553,4.05024233,139.91,139.89,1.06780624]
[1641784684452,4.05024233,139.91,139.9,2.4422362]
[1641784684852,4.05024233,139.91,139.9,3.51004244]
[1641784688456,27.66479,139.92,139.9,3.51004244]
[1641784688662,27.66479,139.94,139.9,3.51004244]
[1641784689062,27.66479,139.94,139.9,2.4422362]
[1641784689464,27.66479,139.94,139.89,15.14694559]
[1641784689962,4.05038434,139.93,139.9,1.91837124]
[1641784690764,6.85993522,139.95,139.91,4.0]
[1641784691064,15.14694559,139.98,139.94,4.0]
[1641784691267,15.14694559,139.98,139.94,5.713]
[1641784691863,15.14694559,139.98,139.95,6.4422362]
[1641784692263,15.14694559,139.98,139.96,2.72693408]
[1641784692465,15.14694559,139.98,139.96,5.16917028]
[1641784692863,4.04900557,139.97,139.96,5.16917028]
[1641784693264,4.04900557,139.97,139.96,2.72693408]
[1641784694063,2.9893762,139.96,139.95,27.66479]
[1641784694263,4.04900557,139.97,139.95,27.66479]
[1641784694865,6.64833512,139.97,139.93,27.66479]
[1641784695065,6.64833512,139.97,139.92,47.2159]
[1641784695466,4.04900557,139.96,139.93,2.29539798]
[1641784696267,38.86022593,139.96,139.93,2.29539798]
[1641784696568,4.04900557,139.95,139.93,2.29539798]
[1641784696766,12.72800557,139.95,139.93,2.29539798]
[1641784697167,23.58771787,139.95,139.93,2.29539798]
[1641784697372,4.04900557,139.94,139.91,2.29539798]
[1641784697773,8.04900557,139.94,139.91,2.29539798]
[1641784697971,4.0,139.93,139.9,2.29539798]
[1641784698374,4.04900557,139.92,139.9,2.29539798]
[1641784698671,23.11773488,139.92,139.9,2.29539798]
[1641784698871,10.86189575,139.91,139.88,46.8236]
[1641784699470,10.86189575,139.91,139.85,105.8848]
[1641784699671,5.71922842,139.88,139.85,53.2688]
[1641784699872,11.62322842,139.88,139.84,55.29614025]
[1641784700071,11.62322842,139.88,139.86,2.44849807]
[1641784700871,11.62322842,139.88,139.87,1.73843314]
[1641784701273,15.67474118,139.88,139.87,1.73843314]
[1641784701472,9.95551276,139.88,139.87,1.73843314]
[1641784703478,5.904,139.88,139.87,1.73843314]
[1641784703680,6.86189575,139.91,139.87,1.73843314]
[1641784704281,4.05103367,139.9,139.87,1.73843314]
[1641784712389,4.05103367,139.9,139.87,5.73843314]
[1641784712789,7.14872931,139.92,139.88,1.73843314]
[1641784712990,7.14872931,139.92,139.88,29.40322314]
[1641784713190,4.05075804,139.91,139.88,29.40322314]
[1641784713590,4.05075804,139.91,139.88,1.73843314]
[1641784713791,10.54775804,139.91,139.89,1.73843314]
[1641784714191,4.05075804,139.9,139.87,1.73843314]
[1641784714391,9.71889961,139.89,139.87,1.73843314]
[1641784714593,3.98129133,139.87,139.86,2.44849807]
[1641784714793,11.58129133,139.87,139.86,2.44849807]
[1641784714993,7.6,139.87,139.86,2.44849807]
[1641784715994,11.65217463,139.87,139.86,3.81693188]
[1641784725807,4.05217463,139.87,139.86,3.81693188]
[1641784726506,4.05217463,139.87,139.86,3.81615995]
[1641784726906,4.05217463,139.87,139.86,2.44772614]
[1641784727806,4.05217463,139.87,139.86,3.79892097]
[1641784738423,5.72024849,139.86,139.85,7.68824864]
[1641784739623,9.77268001,139.86,139.85,9.02603086]
[1641784748530,9.77268001,139.86,139.85,15.66303086]
[1641784748928,4.05243152,139.86,139.85,15.66303086]
[1641784749128,14.01324426,139.89,139.85,15.66303086]
[1641784749529,14.01324426,139.89,139.85,14.32524864]
[1641784750432,4.05186792,139.88,139.86,1.06698489]
[1641784751632,5.71972401,139.87,139.86,1.06698489]
[1641784752032,9.77159193,139.87,139.86,1.06698489]
[1641784754837,4.05186792,139.87,139.86,1.06698489]
[1641784755738,4.05186792,139.91,139.86,1.06698489]
[1641784755938,4.05186792,139.87,139.86,37.82777489]
[1641784756139,30.55091737,139.92,139.86,37.82777489]
[1641784756739,30.55091737,139.92,139.86,36.76079]
[1641784756939,15.38225981,139.92,139.86,86.91729]
[1641784757342,4.05158731,139.91,139.87,2.83939853]
[1641784758539,5.71854006,139.9,139.87,2.83939853]
[1641784759140,4.05158731,139.89,139.87,2.83939853]
[1641784766852,5.71877175,139.9,139.87,2.83939853]
[1641784767053,5.71877175,139.9,139.87,8.83839853]
[1641784767453,4.05123566,139.89,139.87,8.83839853]
[1641784767856,4.05123566,139.89,139.88,2.83939853]
[1641784768054,15.16865756,139.92,139.88,2.83939853]
[1641784768255,4.05100599,139.91,139.88,30.50418853]
[1641784768454,4.90676355,139.92,139.88,30.50418853]
[1641784768657,7.14719651,139.95,139.88,27.66479]
[1641784768856,7.14719651,139.95,139.89,5.786]
[1641784769857,2.831941,139.94,139.9,4.05045257]
[1641784770057,2.831941,139.94,139.9,15.18445257]
[1641784770258,42.96065583,139.97,139.92,27.66479]
[1641784771759,4.05003343,139.96,139.93,2.83816127]
[1641784777364,4.05003343,139.96,139.92,2.83816127]
[1641784777765,2.59932955,139.97,139.93,4.0]
[1641784777966,60.69006618,139.99,139.94,4.0]
[1641784778466,7.14413288,140.01,139.94,27.66479]
[1641784778671,7.14413288,140.01,139.95,53.6903]
[1641784779073,0.80988691,140.0,139.96,4.04943453]
[1641784779474,6.52436523,140.0,139.96,4.04943453]
[1641784779973,0.80988691,139.99,139.96,4.04943453]
[1641784782676,0.80988691,139.99,139.96,8.04943453]
[1641784782876,0.80988691,139.99,139.97,4.04943453]
[1641784783477,0.80988691,140.0,139.97,4.04943453]
[1641784784178,0.80988691,140.0,139.96,4.04943453]
[1641784784879,6.52441148,140.0,139.96,4.04943453]
[1641784785479,0.80988691,139.99,139.96,4.04943453]
[1641784788081,9.7158832,139.97,139.96,4.04943453]
[1641784788282,16.86282431,139.97,139.96,4.04943453]
[1641784788481,16.86282431,139.97,139.92,53.6657]
[1641784788681,27.66479,139.96,139.9,27.66479]
[1641784788883,34.99979,139.96,139.9,27.66479]
[1641784789183,39.80967691,139.96,139.93,4.05075196]
[1641784789384,0.80988691,139.95,139.91,4.05075196]
[1641784790185,0.80988691,139.95,139.9,4.05075196]
[1641784791186,0.80988691,139.95,139.87,62.31475196]
[1641784791484,0.80988691,139.95,139.88,4.05075196]
[1641784794192,0.80988691,139.95,139.89,4.0]
[1641784794390,0.80988691,139.95,139.89,10.374]
[1641784794589,0.80988691,139.95,139.9,4.05075196]
[1641784794790,0.80988691,139.95,139.91,4.0]
[1641784794992,0.80988691,139.95,139.9,4.05075196]
[1641784796591,0.80988691,139.95,139.9,8.05075196]
[1641784797192,0.80988691,139.95,139.91,4.05075196]
[1641784797592,0.80988691,139.95,139.9,4.05075196]
[1641784797892,0.80988691,139.95,139.92,4.0]
[1641784798091,12.86282431,139.97,139.93,4.0]
[1641784798092,0.80988691,139.96,139.93,4.0]
[1641784798292,0.80988691,139.96,139.92,6.912]
[1641784798494,0.80988691,139.96,139.94,4.05075196]
[1641784798893,0.80988691,139.98,139.93,4.05075196]
[1641784800196,0.80988691,139.98,139.92,4.05075196]
[1641784801196,7.95555128,139.98,139.92,4.05075196]
[1641784801396,35.62034128,139.98,139.92,4.05075196]
[1641784801897,0.80988691,139.97,139.92,4.05075196]
[1641784803098,11.54588691,139.97,139.92,4.05075196]
[1641784803698,0.80988691,139.96,139.92,4.05075196]
[1641784804600,5.7163645,139.95,139.92,4.05075196]
[1641784805203,0.80988691,139.94,139.89,4.05075196]
[1641784805401,7.21388691,139.94,139.89,4.05075196]
[1641784806001,6.52741514,139.93,139.89,4.05075196]
[1641784806502,0.80988691,139.92,139.87,4.05075196]
[1641784806904,4.80988691,139.92,139.87,4.05075196]
[1641784807302,0.80988691,139.91,139.86,4.05075196]
[1641784807503,8.67688691,139.91,139.86,4.05075196]
[1641784808204,0.80988691,139.9,139.86,4.05075196]
[1641784811106,0.80988691,139.91,139.86,4.05075196]
[1641784811309,0.80988691,139.91,139.86,15.63475196]
[1641784811505,0.80988691,139.92,139.87,27.66479]
[1641784812305,0.80988691,139.92,139.88,4.05075196]
[1641784813507,5.71815178,139.91,139.88,4.05075196]
[1641784813707,5.71815178,139.91,139.86,4.05075196]
[1641784814309,0.80988691,139.9,139.86,4.05075196]
[1641784817617,15.12622557,139.94,139.89,4.0]
[1641784817817,15.12622557,139.95,139.89,12.512]
[1641784818018,15.12622557,139.95,139.9,4.0]
[1641784818519,6.85916389,139.96,139.9,4.0]
[1641784819019,0.81015256,139.95,139.91,4.0507628]
[1641784819622,0.81015256,139.96,139.91,4.0507628]
[1641784819821,0.81015256,139.96,139.91,31.7155528]
[1641784820023,0.81015256,139.94,139.91,31.7155528]
[1641784820425,0.81015256,139.96,139.92,4.0507628]
[1641784820623,0.81015256,139.96,139.92,12.2487628]
[1641784821023,0.81015256,139.96,139.93,4.0507628]
[1641784828027,0.81015256,139.96,139.94,27.66479]
[1641784828529,0.81015256,139.96,139.95,4.0507628]
[1641784828728,0.81015256,139.96,139.95,10.7447628]
[1641784829434,15.12622557,139.97,139.95,14.7447628]
[1641784829632,27.66479,140.0,139.95,14.7447628]
[1641784829633,7.1446433,140.0,139.95,10.7447628]
[1641784829833,7.1446433,140.0,139.97,4.0]
[1641784830132,7.1446433,140.0,139.97,31.66479]
[1641784830330,7.1446433,140.0,139.97,27.66479]
[1641784830533,60.5067539,140.01,139.98,4.0]
[1641784830731,60.5067539,140.01,139.98,8.683]
[1641784830933,60.5067539,140.01,139.99,4.04905122]
[1641784831131,0.80981024,140.0,139.99,4.04905122]
[1641784833134,0.80981024,140.02,139.99,4.04905122]
[1641784833634,0.80981024,140.05,139.99,4.04905122]
[1641784834337,2.58918349,140.04,139.99,4.04905122]
[1641784834837,0.80981024,140.03,139.99,4.04905122]
[1641784835735,0.80981024,140.05,139.99,4.04905122]
[1641784836537,2.5873706,140.04,139.99,4.04905122]
[1641784836737,2.5873706,140.04,139.99,8.04905122]
[1641784836941,2.5873706,140.04,139.99,4.04905122]
[1641784837138,0.80981024,140.03,140.0,4.04905122]
[1641784837539,0.80981024,140.03,139.99,4.04905122]
[1641784838138,0.80981024,140.04,139.99,4.04905122]
[1641784838339,1.024e-05,140.04,140.02,4.0]
[1641784838539,5.71234903,140.05,140.03,4.0]
[1641784838740,7.14005212,140.09,140.04,4.0]
[1641784839944,7.14005212,140.09,140.05,4.04759249]
[1641784839945,0.8095185,140.08,140.05,4.04759249]
[1641784840242,0.8095185,140.08,140.05,10.60759249]
[1641784840444,0.8095185,140.08,140.05,38.27238249]
[1641784840845,0.8095185,140.08,140.06,4.04759249]
[1641784841744,100.88643518,140.1,140.06,8.04759249]
[1641784841946,100.88643518,140.1,140.06,4.04759249]
[1641784842144,100.88643518,140.1,140.05,38.22479]
[1641784842346,100.88643518,140.1,140.06,4.0]
[1641784842545,74.88503518,140.1,140.05,38.22479]
[1641784842744,74.88503518,140.1,140.06,4.0]
[1641784842945,0.80925115,140.09,140.06,8.04625577]
[1641784843347,74.88503518,140.1,140.07,4.04625577]
[1641784844152,74.88503518,140.1,140.07,8.04625577]
[1641784844347,0.80921074,140.09,140.08,27.66479]
[1641784844547,0.80921074,140.09,140.08,39.92104577]
[1641784845752,0.80921074,140.09,140.08,12.25625577]
[1641784845950,0.80921074,140.09,140.08,4.04625577]
[1641784846550,0.80921074,140.09,140.06,4.04625577]
[1641784847050,12.70309293,140.09,140.06,4.04625577]
[1641784847349,12.70309293,140.09,140.05,4.04625577]
[1641784847751,0.80921074,140.09,140.05,4.04625577]
[1641784847952,0.80921074,140.08,140.05,4.04625577]
[1641784848249,74.88503518,140.1,140.05,4.04625577]
[1641784848250,0.80921074,140.09,140.05,4.04625577]
[1641784848451,0.80921074,140.09,140.05,11.99725577]
[1641784849151,0.80921074,140.09,140.06,4.04625577]
[1641784854357,0.80921074,140.09,140.07,27.66479]
[1641784854958,0.80921074,140.09,140.08,4.04625577]
[1641784856258,0.80921074,140.09,140.08,10.52425577]
[1641784857458,7.13699461,140.15,140.08,14.52425577]
[1641784857658,54.9993,140.16,140.09,4.0]
[1641784857860,5.70754358,140.17,140.08,68.32765577]
[1641784858059,5.70754358,140.17,140.08,60.2814]
[1641784858460,5.70754358,140.17,140.11,27.66479]
[1641784858759,4.0,140.16,140.11,7.573]
[1641784858960,7.38349367,140.16,140.11,7.573]
[1641784859263,0.80920827,140.15,140.11,7.573]
[1641784859662,3.38349367,140.15,140.11,7.573]
[1641784860162,0.80920827,140.14,140.11,7.573]
[1641784860376,0.80920827,140.14,140.08,58.4974]
[1641784861168,0.80920827,140.14,140.09,4.04611651]
[1641784864571,0.80920827,140.14,140.1,27.66479]
[1641784865173,0.80920827,140.14,140.11,4.04611651]
[1641784866476,0.80920827,140.14,140.08,52.0194]
[1641784866675,6.51815958,140.14,140.08,52.0194]
[1641784866874,4.0,140.13,140.05,1.784]
[1641784867075,5.70948996,140.12,140.05,54.8758]
[1641784867475,9.70948996,140.12,140.05,54.8758]
[1641784867675,0.80920827,140.11,140.06,4.04700422]
[1641784872386,0.80920827,140.11,140.06,8.04700422]
[1641784872586,0.80920827,140.11,140.1,27.66479]
[1641784872787,0.80920827,140.14,140.1,35.12979]
[1641784873187,0.80920827,140.14,140.11,4.04700422]
[1641784876286,2.58964816,140.13,140.11,4.04700422]
[1641784876689,2.58964816,140.13,140.1,7.465]
[1641784876987,0.80920827,140.12,140.1,7.465]
[1641784877687,2.58964816,140.11,140.1,7.465]
[1641784877887,2.58964816,140.11,140.07,56.7005]
[1641784878088,3.39885643,140.11,140.1,4.04629577]
[1641784878288,3.39885643,140.11,140.1,10.38329577]
[1641784878490,3.39885643,140.11,140.1,6.337]
[1641784878988,3.39885643,140.11,140.1,10.38329577]
[1641784887302,3.39885643,140.11,140.1,14.38329577]
[1641784887501,10.27072916,140.16,140.1,16.16729577]
[1641784887701,10.27072916,140.16,140.14,4.0]
[1641784887904,40.35448019,140.17,140.14,11.977]
[1641784888602,40.35448019,140.17,140.15,4.04431288]
[1641784888806,40.35448019,140.17,140.16,27.66479]
[1641784889003,60.42151844,140.21,140.16,27.66479]
[1641784889305,60.42151844,140.21,140.16,31.70910288]
[1641784889503,60.42151844,140.21,140.17,4.04431288]
[1641784890503,60.42151844,140.21,140.17,10.71831288]
[1641784890904,60.42151844,140.21,140.17,6.674]
[1641784891406,75.51033471,140.21,140.17,6.674]
[1641784891704,79.51033471,140.21,140.16,27.66479]
[1641784892104,75.51033471,140.21,140.16,27.66479]
[1641784892404,75.51033471,140.21,140.17,4.04443522]
[1641784892606,75.51033471,140.21,140.17,9.86043522]
[1641784893206,75.51033471,140.21,140.17,5.816]
[1641784894307,79.51033471,140.21,140.17,5.816]
[1641784894507,79.51033471,140.21,140.16,27.66479]
[1641784894714,75.51033471,140.21,140.16,27.66479]
[1641784894909,75.51033471,140.21,140.17,4.04442447]
[1641784895208,79.51033471,140.21,140.17,4.04442447]
[1641784896309,75.51033471,140.21,140.17,12.66342447]
[1641784896714,79.51033471,140.21,140.17,8.619]
[1641784897010,75.51033471,140.21,140.17,8.619]
[1641784897210,79.51033471,140.21,140.17,8.619]
[1641784897411,79.51033471,140.21,140.16,27.66479]
[1641784897811,79.51033471,140.21,140.17,4.04441081]
[1641784899011,75.51033471,140.21,140.17,4.04441081]
[1641784899511,75.51033471,140.21,140.17,11.81841081]
[1641784899912,15.08881627,140.21,140.17,7.774]
[1641784902314,15.08881627,140.21,140.16,27.66479]
[1641784902714,20.7946465,140.21,140.16,27.66479]
[1641784903115,20.7946465,140.21,140.15,54.1484]
[1641784903416,20.7946465,140.21,140.17,4.04424118]
[1641784903816,20.7946465,140.21,140.16,4.04424118]
[1641784908024,24.7946465,140.21,140.16,4.04424118]
[1641784908225,20.7946465,140.21,140.16,4.04424118]
[1641784908425,5.70583023,140.21,140.16,4.04424118]
[1641784912528,42.75103756,140.22,140.16,4.04424118]
[1641784917537,4.0,140.21,140.16,4.04424118]
[1641784918038,14.2744049,140.21,140.16,4.04424118]
[1641784918638,9.70618906,140.2,140.16,4.04424118]
[1641784918838,4.0,140.19,140.16,4.04424118]
[1641784919039,4.0,140.17,140.16,4.04424118]
[1641784919237,13.063,140.17,140.13,4.04424118]
[1641784919437,27.66479,140.16,140.13,4.04424118]
[1641784919638,27.66479,140.16,140.12,4.04424118]
[1641784919839,5.7071812,140.18,140.12,4.04424118]
[1641784920038,5.7071812,140.18,140.12,61.49814118]
[1641784920443,5.7071812,140.18,140.12,68.97114118]
[1641784920640,17.41028884,140.2,140.13,4.04424118]
[1641784921240,10.27609465,140.2,140.13,4.04424118]
[1641784921440,10.27609465,140.2,140.13,31.70903118]
[1641784921839,10.27609465,140.2,140.13,37.49103118]
[1641784922039,10.27609465,140.2,140.14,4.04424118]
[1641784922238,6.84730418,140.21,140.14,4.04424118]
[1641784922439,40.39230267,140.24,140.19,4.0]
[1641784922638,40.39230267,140.24,140.2,1.782]
[1641784922838,40.39230267,140.24,140.19,7.557]
[1641784923040,40.39230267,140.24,140.2,4.04424118]
[1641784923240,40.67740095,140.25,140.2,4.04424118]
[1641784923441,40.67740095,140.25,140.24,27.66479]
[1641784923640,40.67740095,140.25,140.24,36.01379]
[1641784923841,40.67740095,140.25,140.24,40.05803118]
[1641784926346,44.67740095,140.25,140.24,40.05803118]
[1641784926946,44.67740095,140.25,140.24,36.01379]
[1641784928047,44.67740095,140.25,140.24,27.66479]
[1641784928650,44.67740095,140.25,140.2,27.66479]
[1641784928848,44.67740095,140.25,140.16,55.7259]
[1641784928849,4.0,140.23,140.16,55.7259]
[1641784929049,4.0,140.21,140.16,55.7259]
[1641784929448,4.0,140.21,140.17,4.04337426]
[1641784929649,4.0,140.18,140.17,4.04337426]
[1641784929848,10.999,140.18,140.17,4.04337426]
[1641784930050,10.999,140.18,140.15,4.04337426]
[1641784930248,6.999,140.18,140.15,4.04337426]
[1641784931148,4.0,140.21,140.15,4.04337426]
[1641784931750,4.0,140.2,140.15,4.04337426]
[1641784931950,4.0,140.19,140.15,4.04337426]
[1641784932350,4.0,140.18,140.15,4.04337426]
[1641784934355,4.0,140.16,140.15,4.04337426]
[1641784934553,9.66,140.16,140.07,61.5751]
[1641784934751,4.0,140.15,140.07,61.5751]
[1641784934952,4.0,140.15,140.07,122.3329]
[1641784935151,4.0,140.15,140.08,2.44922205]
[1641784935551,0.80904649,140.14,140.09,31.71002243]
[1641784935953,0.80904649,140.14,140.1,4.04523243]
[1641784936653,0.80904649,140.14,140.1,15.27623243]
[1641784936654,4.649e-05,140.14,140.1,15.27623243]
[1641784936953,5.70670683,140.19,140.11,24.26492503]
[1641784937552,5.70670683,140.19,140.15,27.66479]
[1641784937752,5.70670683,140.19,140.15,34.27779]
[1641784938355,5.70670683,140.19,140.16,4.04397095]
[1641784938957,7.13444869,140.21,140.16,4.04397095]
[1641784939157,12.84038622,140.21,140.16,4.04397095]
[1641784939555,16.84038622,140.21,140.16,4.04397095]
[1641784940965,0.80879196,140.2,140.16,4.04397095]
[1641784942963,0.80879196,140.23,140.16,8.04397095]
[1641784943163,0.80879196,140.23,140.16,9.82597095]
[1641784943767,0.80879196,140.23,140.21,27.66479]
[1641784943962,0.80879196,140.23,140.21,34.11379]
[1641784947167,0.80879196,140.24,140.21,34.11379]
[1641784947368,0.80879196,140.24,140.21,27.66479]
[1641784949068,2.57766602,140.23,140.21,27.66479]
[1641784949669,0.80879196,140.22,140.21,27.66479]
[1641784950869,0.80879196,140.23,140.21,27.66479]
[1641784953078,0.80879196,140.23,140.21,33.48279]
[1641784953474,0.80879196,140.23,140.22,4.04280207]
[1641784953877,0.80879196,140.24,140.22,4.04280207]
[1641784957879,0.80879196,140.24,140.21,27.66479]
[1641784958281,0.80879196,140.24,140.22,4.04285507]
[1641784959683,6.51359524,140.24,140.22,4.04285507]
[1641784960086,0.80879196,140.23,140.21,27.66479]
[1641784960687,5.70560512,140.22,140.17,87.24379]
[1641784960887,14.86160512,140.22,140.17,87.24379]
[1641784961086,4.0,140.21,140.17,59.579]
[1641784961289,9.70639275,140.2,140.12,2.446884]
[1641784961488,5.70639275,140.2,140.18,4.0436223]
[1641784961988,0.80879196,140.19,140.16,27.66479]
[1641784962488,0.80879196,140.19,140.17,4.0436223]
[1641784963289,0.80879196,140.19,140.17,11.1906223]
[1641784963690,0.80879196,140.19,140.18,4.0436223]
[1641784964691,0.80879196,140.22,140.18,4.0436223]
[1641784967796,0.80879196,140.22,140.19,27.66479]
[1641784968598,0.80879196,140.22,140.2,4.0436223]
[1641784968798,0.80879196,140.22,140.2,10.8366223]
[1641784969499,0.80879196,140.22,140.21,4.0436223]
[1641784971804,4.80879196,140.23,140.21,4.0436223]
[1641784972106,0.80879196,140.22,140.21,4.0436223]
[1641784972604,0.80879196,140.23,140.21,4.0436223]
[1641784973106,4.0,140.22,140.21,4.0436223]
[1641784973308,4.80879196,140.23,140.21,4.0436223]
[1641784973506,4.80879196,140.22,140.18,4.0436223]
[1641784973705,0.80879196,140.22,140.18,4.0436223]
[1641784973906,0.80879196,140.21,140.18,4.0436223]
[1641784977109,2.58798826,140.2,140.18,4.0436223]
[1641784977510,0.80879196,140.19,140.18,4.0436223]
[1641784978713,0.80879196,140.22,140.18,4.0436223]